bitfinex-derivatives/quotes_BNBF0:USTF0_20251002
["timestamp","ask_amount","ask_price","bid_price","bid_amount"]
[1759398390365,0.86197612,1039.9,1038.8,1.22623069]
[1759398392265,0.86197612,1039.8,1038.8,1.22623069]
[1759398392568,0.86197612,1040.1,1038.8,1.22623069]
[1759398393469,0.86197612,1040.0,1038.8,1.22623069]
[1759398394971,0.86197612,1039.8,1038.8,1.22623069]
[1759398398870,0.86197612,1040.0,1038.8,1.22623069]
[1759398402071,0.86197612,1040.1,1038.8,1.22623069]
[1759398405975,0.86197612,1040.0,1038.8,1.22623069]
[1759398406682,0.86197612,1040.1,1038.8,1.22623069]
[1759398408077,0.86197612,1040.0,1038.8,1.22623069]
[1759398409980,0.86197612,1039.9,1038.8,1.22623069]
[1759398410274,0.86197612,1040.0,1038.8,1.22623069]
[1759398411875,0.86197612,1040.0,1038.9,1.16464705]
[1759398412578,0.86197612,1039.9,1038.9,1.16464705]
[1759398414380,0.86197612,1039.8,1038.9,1.16464705]
[1759398415076,0.86197612,1039.9,1038.9,1.16464705]
[1759398415380,0.86197612,1039.8,1039.0,1.1750818]
[1759398416581,0.86197612,1039.7,1039.1,1.18488101]
[1759398416782,0.86197612,1039.7,1039.1,1.18888101]
[1759398416984,0.86197612,1039.6,1039.1,1.18888101]
[1759398419986,0.86197612,1039.6,1039.2,1.15430641]
[1759398421592,0.86197612,1039.7,1039.2,1.15430641]
[1759398423095,0.86197612,1039.9,1039.2,1.15430641]
[1759398423296,0.86197612,1039.8,1039.2,1.15430641]
[1759398424296,0.86197612,1039.8,1038.4,0.16746268]
[1759398425291,0.86197612,1039.5,1038.4,0.16746268]
[1759398425493,0.86197612,1039.5,1038.5,1.15830458]
[1759398425792,0.86197612,1039.5,1038.5,1.16230458]
[1759398433903,0.86197612,1039.4,1038.5,1.16230458]
[1759398434103,0.86197612,1039.5,1038.5,1.16230458]
[1759398434300,0.86197612,1039.6,1038.5,1.16230458]
[1759398434504,0.86197612,1039.5,1038.5,1.16230458]
[1759398434800,0.86197612,1039.4,1038.5,1.16230458]
[1759398435600,0.86197612,1039.7,1038.5,1.16230458]
[1759398436805,0.86197612,1039.4,1038.5,1.16230458]
[1759398439606,0.86197612,1039.5,1038.5,1.16230458]
[1759398441207,0.86197612,1039.4,1038.5,1.16230458]
[1759398444009,0.86197612,1039.5,1038.5,1.16230458]
[1759398444510,0.86197612,1039.4,1038.5,1.16230458]
[1759398445309,0.86197612,1039.5,1038.5,1.16230458]
[1759398445506,0.86197612,1039.4,1038.5,1.16230458]
[1759398448106,0.86197612,1039.6,1038.5,1.16230458]
[1759398452210,0.86197612,1039.4,1038.5,1.16230458]
[1759398453214,1.2929641,1039.6,1038.5,1.16230458]
[1759398453215,0.86197612,1039.6,1038.5,1.16230458]
[1759398454313,0.86197612,1039.7,1038.5,1.16230458]
[1759398456311,0.86197612,1039.6,1038.5,1.16230458]
[1759398456515,0.86197612,1039.5,1038.5,1.16230458]
[1759398458212,0.86197612,1039.6,1038.5,1.16230458]
[1759398458416,0.86197612,1039.5,1038.5,1.16230458]
[1759398459117,0.86197612,1039.6,1038.5,1.16230458]
[1759398460315,0.86197612,1039.8,1038.5,1.16230458]
[1759398463814,0.86197612,1039.6,1038.5,1.16230458]
[1759398467218,0.86197612,1039.7,1038.5,1.16230458]
[1759398468520,0.86197612,1039.6,1038.5,1.16230458]
[1759398468817,0.86197612,1039.7,1038.5,1.16230458]
[1759398477823,0.86197612,1039.8,1038.5,1.16230458]
[1759398481722,0.86197612,1039.7,1038.5,1.16230458]
[1759398482823,0.86197612,1039.8,1038.5,1.16230458]
[1759398484324,0.86197612,1039.9,1038.5,1.16230458]
[1759398484728,0.86197612,1040.0,1038.5,1.16230458]
[1759398487728,0.86197612,1039.9,1038.5,1.16230458]
[1759398488127,0.86197612,1040.0,1038.5,1.16230458]
[1759398488830,0.86197612,1040.1,1038.5,1.16230458]
[1759398491729,1.02938079,1040.1,1038.5,1.16230458]
[1759398492124,0.16740467,1040.1,1038.5,1.16230458]
[1759398492833,0.16740467,1040.1,1038.6,0.84318514]
[1759398493130,0.16740467,1040.1,1038.5,2.00548972]
[1759398493832,0.16740467,1040.1,1038.6,0.84318514]
[1759398494232,0.16740467,1040.1,1038.5,2.00548972]
[1759398494632,0.16740467,1040.1,1038.6,0.84318514]
[1759398495230,0.16740467,1040.1,1038.5,2.00548972]
[1759398495434,0.16740467,1040.1,1038.6,0.84318514]
[1759398497135,0.16740467,1040.1,1038.5,2.00548972]
[1759398497537,0.16740467,1040.1,1038.6,0.84318514]
[1759398499339,0.16740467,1040.1,1038.5,2.00548972]
[1759398502434,0.16740467,1040.1,1038.5,1.16230458]
[1759398517944,0.86197612,1040.7,1038.5,1.16230458]
[1759398518148,0.16738052,1040.3,1038.5,1.16230458]
[1759398520248,0.86197612,1040.7,1038.5,1.16230458]
[1759398520448,1.02930594,1040.7,1039.1,0.84318514]
[1759398520745,0.16732982,1040.7,1039.2,0.84318514]
[1759398521248,0.16732982,1040.7,1039.1,0.84318514]
[1759398522651,0.16732982,1040.7,1039.0,0.84318514]
[1759398524150,0.16732982,1040.7,1038.9,0.84318514]
[1759398526448,0.16732982,1040.7,1038.8,0.84318514]
[1759398527153,0.16732982,1040.7,1038.9,0.84318514]
[1759398527453,0.1672904,1040.9,1039.1,0.84318514]
[1759398529148,0.1672904,1040.9,1039.0,0.84318514]
[1759398530954,0.1672904,1040.9,1038.9,0.84318514]
[1759398531349,1.02926652,1040.9,1038.8,0.84318514]
[1759398533552,0.1672904,1040.9,1038.8,0.84318514]
[1759398533753,1.02926652,1040.9,1038.8,0.84318514]
[1759398534854,0.1672904,1040.9,1038.8,0.84318514]
[1759398536552,1.02926652,1040.9,1038.8,0.84318514]
[1759398536756,0.1672904,1040.9,1038.8,0.84318514]
[1759398537555,1.02926652,1040.9,1038.8,0.84318514]
[1759398538655,0.1672904,1040.9,1038.8,0.84318514]
[1759398539057,1.02926652,1040.9,1038.8,0.84318514]
[1759398539453,1.02926652,1040.9,1038.6,1.2887519]
[1759398539454,0.1672904,1040.9,1038.7,0.84318514]
[1759398542754,0.1672904,1040.9,1038.8,0.84318514]
[1759398543257,0.1672904,1040.9,1038.9,0.84318514]
[1759398544058,0.1672904,1040.9,1038.8,0.84318514]
[1759398544259,0.1672904,1040.9,1038.9,0.84318514]
[1759398544958,0.1672904,1040.9,1038.8,0.84318514]
[1759398550664,0.1672904,1040.9,1038.9,0.84318514]
[1759398550860,0.1672904,1040.9,1038.8,0.84318514]
[1759398551066,0.1672904,1040.9,1038.9,0.84318514]
[1759398552362,0.1672904,1040.9,1038.8,0.84318514]
[1759398552562,0.1672904,1040.9,1038.7,0.84318514]
[1759398552766,0.1672904,1040.9,1038.6,2.00583217]
[1759398553364,0.1672904,1040.9,1038.6,1.16264703]
[1759398555167,0.1672904,1040.9,1038.7,0.84318514]
[1759398556467,0.1672904,1040.9,1038.6,2.00583217]
[1759398556671,0.1672904,1040.9,1038.7,0.84318514]
[1759398558272,0.1672904,1040.9,1038.6,1.16264703]
[1759398558567,0.86197612,1040.6,1038.6,1.16264703]
[1759398558973,0.86197612,1040.5,1038.6,1.16264703]
[1759398559873,0.86197612,1040.6,1038.6,1.16264703]
[1759398560672,0.86197612,1040.4,1038.6,1.16264703]
[1759398560968,0.86197612,1040.5,1038.6,1.16264703]
[1759398561369,0.86197612,1040.8,1038.6,1.16264703]
[1759398562469,1.02926652,1040.9,1038.6,1.16264703]
[1759398563974,0.86197612,1040.8,1038.6,1.16264703]
[1759398565673,0.86197612,1040.6,1038.6,1.16264703]
[1759398567274,0.86197612,1040.5,1038.6,1.16264703]
[1759398567575,0.86197612,1040.4,1038.6,1.16264703]
[1759398568978,0.86197612,1040.5,1038.6,1.16264703]
[1759398570774,0.86197612,1040.5,1038.6,1.33003077]
[1759398571279,0.86197612,1040.4,1038.6,1.33003077]
[1759398572376,0.86197612,1040.5,1038.6,1.33003077]
[1759398573781,0.86197612,1040.5,1038.7,1.1503143]
[1759398573978,0.86197612,1040.7,1038.7,1.1503143]
[1759398577284,0.86197612,1040.7,1038.8,1.16127984]
[1759398578184,0.86197612,1040.6,1038.8,1.16127984]
[1759398578387,0.86197612,1040.7,1038.8,1.16127984]
[1759398578785,0.86197612,1040.6,1038.8,1.16127984]
[1759398579088,0.86197612,1040.4,1038.8,1.16127984]
[1759398582689,0.86197612,1040.2,1038.8,1.16127984]
[1759398582888,0.5518382,1040.1,1038.8,1.16127984]
[1759398583089,0.5518382,1040.0,1038.8,1.16127984]
[1759398583292,0.5518382,1039.9,1038.8,1.16127984]
[1759398583492,0.5518382,1039.8,1038.8,1.16127984]
[1759398583691,0.5518382,1039.7,1038.8,1.16127984]
[1759398583892,0.5518382,1039.6,1038.8,1.16127984]
[1759398584090,0.86197612,1040.2,1038.8,1.16127984]
[1759398584291,0.55176103,1040.1,1038.8,1.16127984]
[1759398584492,0.55176103,1040.0,1038.8,1.16127984]
[1759398584694,0.55176103,1039.9,1038.8,1.16127984]
[1759398584994,0.55176103,1039.8,1038.8,1.16127984]
[1759398585290,0.55176103,1039.7,1038.8,1.16127984]
[1759398585493,0.55176103,1039.6,1038.8,1.16127984]
[1759398585694,0.86197612,1040.2,1038.8,1.16127984]
[1759398585891,0.55169546,1040.1,1038.8,1.16127984]
[1759398586095,0.55169546,1040.0,1038.8,1.16127984]
[1759398586290,0.55169546,1039.9,1038.8,1.16127984]
[1759398586495,0.55169546,1039.8,1038.8,1.16127984]
[1759398586695,0.55169546,1039.7,1038.8,1.16127984]
[1759398586993,0.55169546,1039.6,1038.8,1.16127984]
[1759398587293,0.86197612,1040.2,1038.8,1.16127984]
[1759398587496,0.55162566,1040.1,1038.8,1.16127984]
[1759398587794,0.55162566,1040.0,1038.8,1.16127984]
[1759398587996,0.55162566,1039.9,1038.8,1.16127984]
[1759398588197,0.55162566,1039.8,1038.8,1.16127984]
[1759398588396,0.55162566,1039.7,1038.8,1.16127984]
[1759398588595,0.55162566,1039.6,1038.8,1.16127984]
[1759398588794,0.86197612,1040.3,1038.8,1.16127984]
[1759398589099,0.55163785,1040.2,1038.8,1.16127984]
[1759398589393,0.55163785,1040.1,1038.8,1.16127984]
[1759398589594,0.55163785,1040.0,1038.8,1.16127984]
[1759398589797,0.86197612,1040.3,1038.8,1.16127984]
[1759398589798,0.55163785,1039.9,1038.8,1.16127984]
[1759398589999,0.55163785,1039.8,1038.8,1.16127984]
[1759398590298,0.55163785,1039.7,1038.8,1.16127984]
[1759398590498,0.55163785,1039.6,1038.8,1.16127984]
[1759398590698,0.86197612,1040.2,1038.8,1.16127984]
[1759398590898,0.55168338,1040.1,1038.8,1.16127984]
[1759398591095,0.55168338,1040.0,1038.8,1.16127984]
[1759398591297,0.55168338,1039.9,1038.8,1.16127984]
[1759398591495,0.55168338,1039.8,1038.8,1.16127984]
[1759398591794,0.55168338,1039.7,1038.8,1.16127984]
[1759398591996,0.55168338,1039.6,1038.8,1.16127984]
[1759398592194,0.86197612,1040.2,1038.8,1.16127984]
[1759398592400,0.55169679,1040.1,1038.8,1.16127984]
[1759398592599,0.55169679,1040.0,1038.8,1.16127984]
[1759398592898,0.55169679,1039.9,1038.8,1.16127984]
[1759398593098,0.55169679,1039.8,1038.8,1.16127984]
[1759398593297,0.55169679,1039.7,1038.8,1.16127984]
[1759398593499,0.86197612,1040.4,1038.8,1.16127984]
[1759398593702,0.55168489,1040.3,1038.8,1.16127984]
[1759398593898,0.55168489,1040.2,1038.8,1.16127984]
[1759398594101,0.55168489,1040.1,1038.8,1.16127984]
[1759398594298,0.55168489,1040.0,1038.8,1.16127984]
[1759398594500,0.55168489,1039.9,1038.8,1.16127984]
[1759398594802,0.55168489,1039.8,1038.8,1.16127984]
[1759398595000,0.55168489,1039.7,1038.8,1.16127984]
[1759398595303,0.86197612,1040.4,1038.8,1.16127984]
[1759398595604,1.41370377,1040.3,1038.8,1.16127984]
[1759398595804,0.55172765,1040.2,1038.8,1.16127984]
[1759398596002,0.55172765,1040.1,1038.8,1.16127984]
[1759398596200,0.55172765,1040.0,1038.8,1.16127984]
[1759398596405,0.55172765,1039.9,1038.8,1.16127984]
[1759398596705,0.55172765,1039.8,1038.8,1.16127984]
[1759398597004,0.55172765,1039.7,1038.8,1.16127984]
[1759398597206,0.86197612,1040.3,1038.8,1.16127984]
[1759398597405,0.55178528,1040.2,1038.8,1.16127984]
[1759398597605,0.55178528,1040.1,1038.8,1.16127984]
[1759398597805,0.55178528,1040.0,1038.8,1.16127984]
[1759398598000,0.55178528,1039.9,1038.8,1.16127984]
[1759398598202,0.55179483,1039.8,1038.8,1.16127984]
[1759398598400,0.55179483,1039.7,1038.8,1.16127984]
[1759398598701,0.86197612,1040.3,1038.8,1.16127984]
[1759398598900,0.55181894,1040.2,1038.8,1.16127984]
[1759398599107,0.55181894,1040.1,1038.8,1.16127984]
[1759398599301,0.55181894,1040.0,1038.8,1.16127984]
[1759398599502,0.55181894,1039.9,1038.8,1.16127984]
[1759398599706,0.55181894,1039.8,1038.8,1.16127984]
[1759398599903,0.55181894,1039.7,1038.8,1.16127984]
[1759398600107,0.86197612,1040.3,1038.8,1.16127984]
[1759398600307,0.55185372,1040.2,1038.8,1.16127984]
[1759398600507,0.55185372,1040.1,1038.8,1.16127984]
[1759398600707,0.55185372,1040.0,1038.8,1.16127984]
[1759398601006,0.55185372,1039.9,1038.8,1.16127984]
[1759398601207,0.55185372,1039.8,1038.8,1.16127984]
[1759398601405,0.55185372,1039.7,1038.8,1.16127984]
[1759398601706,0.86197612,1040.3,1038.8,1.16127984]
[1759398601909,0.55190581,1040.2,1038.8,1.16127984]
[1759398602109,0.55190581,1040.1,1038.8,1.16127984]
[1759398602307,0.55190581,1040.0,1038.8,1.16127984]
[1759398602511,0.55190581,1039.9,1038.8,1.16127984]
[1759398602711,0.55190581,1039.8,1038.8,1.16127984]
[1759398602909,0.55190581,1039.7,1038.8,1.16127984]
[1759398603111,0.86197612,1040.4,1038.8,1.16127984]
[1759398603312,0.55196368,1040.3,1038.8,1.16127984]
[1759398603509,0.55196368,1040.2,1038.8,1.16127984]
[1759398603709,0.55196368,1040.1,1038.8,1.16127984]
[1759398603910,0.55196368,1040.0,1038.8,1.16127984]
[1759398604114,0.55196368,1039.9,1038.8,1.16127984]
[1759398604310,0.55196368,1039.8,1038.8,1.16127984]
[1759398604513,0.55196368,1039.7,1038.8,1.16127984]
[1759398604712,0.86197612,1040.4,1038.8,1.16127984]
[1759398604917,0.55217237,1040.3,1038.8,1.16127984]
[1759398605117,0.55217237,1040.2,1038.8,1.16127984]
[1759398605414,0.55217237,1040.1,1038.8,1.16127984]
[1759398605613,0.55217237,1040.0,1038.8,1.16127984]
[1759398605812,0.55217237,1039.9,1038.8,1.16127984]
[1759398606016,0.55217237,1039.8,1038.8,1.16127984]
[1759398606214,0.55217237,1039.7,1038.8,1.16127984]
[1759398606418,0.86197612,1040.4,1038.8,1.16127984]
[1759398606618,0.55242982,1040.3,1038.8,1.16127984]
[1759398606818,0.55242982,1040.2,1038.8,1.16127984]
[1759398607018,0.55242982,1040.1,1038.8,1.16127984]
[1759398607319,0.55242982,1040.0,1038.8,1.16127984]
[1759398607514,0.55242982,1039.9,1038.8,1.16127984]
[1759398607717,0.55242982,1039.8,1038.8,1.16127984]
[1759398607915,0.55242982,1039.7,1038.8,1.16127984]
[1759398608117,0.55242982,1039.6,1038.8,1.16127984]
[1759398608414,0.55242982,1039.5,1038.8,1.16127984]
[1759398608718,0.86197612,1040.1,1038.8,1.16127984]
[1759398608918,0.55274946,1040.0,1038.8,1.16127984]
[1759398609214,0.55274946,1039.9,1038.8,1.16127984]
[1759398609415,0.55274946,1039.8,1038.8,1.16127984]
[1759398609619,0.55274946,1039.7,1038.8,1.16127984]
[1759398609816,0.55274946,1039.6,1038.8,1.16127984]
[1759398610018,0.55274946,1039.5,1038.8,1.16127984]
[1759398610216,0.86197612,1040.1,1038.8,1.16127984]
[1759398610416,1.41506449,1040.0,1038.8,1.16127984]
[1759398610619,0.1672904,1040.9,1038.8,1.16127984]
[1759398610620,0.55308837,1039.9,1038.8,1.16127984]
[1759398610815,0.55308837,1039.8,1038.8,1.16127984]
[1759398611116,0.55308837,1039.7,1038.8,1.16127984]
[1759398611315,0.55308837,1039.6,1038.8,1.16127984]
[1759398611519,0.55308837,1039.5,1038.8,1.16127984]
[1759398611815,0.86197612,1040.1,1038.8,1.16127984]
[1759398612020,0.55327369,1040.0,1038.8,1.16127984]
[1759398612218,0.55327369,1039.9,1038.8,1.16127984]
[1759398612418,0.55327369,1039.8,1038.8,1.16127984]
[1759398612617,0.55327369,1039.7,1038.8,1.16127984]
[1759398612817,0.55327369,1039.6,1038.8,1.16127984]
[1759398613021,0.55327369,1039.5,1038.8,1.16127984]
[1759398613317,0.86197612,1040.2,1038.8,1.16127984]
[1759398613521,0.53854562,1040.1,1038.8,1.16127984]
[1759398613722,0.53854562,1040.0,1038.8,1.16127984]
[1759398613917,0.53854562,1039.9,1038.8,1.16127984]
[1759398614119,0.53854562,1039.8,1038.8,1.16127984]
[1759398614317,0.53854562,1039.7,1038.8,1.16127984]
[1759398614519,0.53854562,1039.6,1038.8,1.16127984]
[1759398614723,0.53854562,1039.5,1038.8,1.16127984]
[1759398614924,0.86197612,1040.2,1038.8,1.16127984]
[1759398615124,0.53863118,1040.1,1038.8,1.16127984]
[1759398615322,0.53863118,1040.0,1038.8,1.16127984]
[1759398615520,0.53863118,1039.9,1038.8,1.16127984]
[1759398615722,0.53863118,1039.8,1038.8,1.16127984]
[1759398616027,0.53863118,1039.7,1038.8,1.16127984]
[1759398616225,0.53863118,1039.6,1038.8,1.16127984]
[1759398616425,0.53863118,1039.5,1038.8,1.16127984]
[1759398616725,0.86197612,1040.1,1038.8,1.16127984]
[1759398616925,0.53926628,1040.0,1038.8,1.16127984]
[1759398617222,0.53926628,1039.9,1038.8,1.16127984]
[1759398617421,0.53926628,1039.8,1038.8,1.16127984]
[1759398617620,0.53926628,1039.7,1038.8,1.16127984]
[1759398617825,0.53926628,1039.6,1038.8,1.16127984]
[1759398618020,0.53926628,1039.5,1038.8,1.16127984]
[1759398618220,0.53926628,1039.4,1038.8,1.16127984]
[1759398618420,0.86197612,1040.1,1038.8,1.16127984]
[1759398618625,0.54002677,1040.0,1038.8,1.16127984]
[1759398618825,0.54002677,1039.9,1038.8,1.16127984]
[1759398619025,0.54002677,1039.8,1038.8,1.16127984]
[1759398619325,0.54002677,1039.7,1038.8,1.16127984]
[1759398619520,0.54002677,1039.6,1038.8,1.16127984]
[1759398619725,0.54002677,1039.5,1038.8,1.16127984]
[1759398620023,0.54002677,1039.4,1038.8,1.16127984]
[1759398620326,0.54002677,1039.3,1038.8,1.16127984]
[1759398620621,0.86197612,1039.8,1038.8,1.16127984]
[1759398620622,0.54002677,1039.2,1038.8,1.16127984]
[1759398620819,0.86197612,1039.8,1038.8,1.16127984]
[1759398621023,0.53991663,1039.7,1038.8,1.16127984]
[1759398621222,0.53991663,1039.6,1038.8,1.16127984]
[1759398621425,0.53991663,1039.5,1038.8,1.16127984]
[1759398621622,0.53991663,1039.4,1038.8,1.16127984]
[1759398621924,0.53991663,1039.3,1038.8,1.16127984]
[1759398622123,0.86197612,1039.7,1038.8,1.16127984]
[1759398622321,0.53993144,1039.6,1038.8,1.16127984]
[1759398622524,1.2929641,1039.9,1038.8,1.16127984]
[1759398622525,0.53993144,1039.5,1038.8,1.16127984]
[1759398622720,0.53993144,1039.4,1038.8,1.16127984]
[1759398622923,0.53993144,1039.3,1038.8,1.16127984]
[1759398623122,0.86197612,1039.7,1038.8,1.16127984]
[1759398623421,0.53996264,1039.6,1038.8,1.16127984]
[1759398623620,0.86197612,1039.8,1038.8,1.16127984]
[1759398623621,0.53996264,1039.5,1038.8,1.16127984]
[1759398623820,0.53996264,1039.4,1038.8,1.16127984]
[1759398624025,0.53996264,1039.3,1038.8,1.16127984]
[1759398624226,0.54014112,1039.2,1038.8,1.16127984]
[1759398624429,0.86197612,1039.8,1038.8,1.16127984]
[1759398624628,0.54008457,1039.7,1038.8,1.16127984]
[1759398624828,0.54008457,1039.6,1038.8,1.16127984]
[1759398625027,0.54008457,1039.5,1038.8,1.16127984]
[1759398625227,0.54008457,1039.4,1038.8,1.16127984]
[1759398625426,0.54008457,1039.3,1038.8,1.16127984]
[1759398625651,0.54008457,1039.2,1038.8,1.16127984]
[1759398625824,0.86197612,1039.8,1038.8,1.16127984]
[1759398626030,0.54014421,1039.7,1038.8,1.16127984]
[1759398626328,0.54014421,1039.6,1038.8,1.16127984]
[1759398626530,0.54014421,1039.5,1038.8,1.16127984]
[1759398626825,0.54014421,1039.4,1038.8,1.16127984]
[1759398627026,0.54014421,1039.3,1038.8,1.16127984]
[1759398627224,0.54014421,1039.2,1038.8,1.16127984]
[1759398627429,0.54014421,1039.1,1038.8,1.16127984]
[1759398627631,0.86197612,1039.7,1038.8,1.16127984]
[1759398627931,0.54002857,1039.6,1038.8,1.16127984]
[1759398628231,0.54002857,1039.5,1038.8,1.16127984]
[1759398628428,0.54002857,1039.4,1038.8,1.16127984]
[1759398628628,0.54002857,1039.3,1038.8,1.16127984]
[1759398628929,0.54002857,1039.2,1038.8,1.16127984]
[1759398629129,0.86197612,1039.7,1038.8,1.16127984]
[1759398629329,0.53990583,1039.6,1038.8,1.16127984]
[1759398629526,0.53990583,1039.5,1038.8,1.16127984]
[1759398629731,0.53990583,1039.4,1038.8,1.16127984]
[1759398629931,0.53990583,1039.3,1038.8,1.16127984]
[1759398630232,0.53990583,1039.2,1038.8,1.16127984]
[1759398630431,0.86197612,1039.8,1038.8,1.16127984]
[1759398630632,0.53969464,1039.7,1038.8,1.16127984]
[1759398630832,0.53969464,1039.6,1038.8,1.16127984]
[1759398631132,0.53969464,1039.5,1038.8,1.16127984]
[1759398631433,0.53969464,1039.4,1038.8,1.16127984]
[1759398631632,0.53969464,1039.3,1038.8,1.16127984]
[1759398631833,0.53969464,1039.2,1038.8,1.16127984]
[1759398632033,0.86197612,1039.7,1038.8,1.16127984]
[1759398632332,0.53960365,1039.6,1038.8,1.16127984]
[1759398632530,0.53960365,1039.5,1038.8,1.16127984]
[1759398632730,0.53960365,1039.4,1038.8,1.16127984]
[1759398632933,0.53960365,1039.3,1038.8,1.16127984]
[1759398633133,0.53960365,1039.2,1038.8,1.16127984]
[1759398633331,0.86197612,1039.7,1038.8,1.16127984]
[1759398633633,0.53948203,1039.6,1038.8,1.16127984]
[1759398633831,0.53948203,1039.5,1038.8,1.16127984]
[1759398634032,0.53948203,1039.4,1038.8,1.16127984]
[1759398634329,0.53948203,1039.3,1038.8,1.16127984]
[1759398634534,0.53948203,1039.2,1038.8,1.16127984]
[1759398634734,0.53948203,1039.1,1038.8,1.16127984]
[1759398634935,0.86197612,1039.8,1038.8,1.16127984]
[1759398635135,0.53938983,1039.7,1038.8,1.16127984]
[1759398635332,0.53938983,1039.6,1038.8,1.16127984]
[1759398635538,0.53938983,1039.5,1038.8,1.16127984]
[1759398635736,0.53938983,1039.4,1038.8,1.16127984]
[1759398635937,0.53938983,1039.3,1038.8,1.16127984]
[1759398636134,0.53938983,1039.2,1038.8,1.16127984]
[1759398636332,0.53938983,1039.1,1038.8,1.16127984]
[1759398636535,0.86197612,1039.8,1038.8,1.16127984]
[1759398636745,0.53914219,1039.7,1038.8,1.16127984]
[1759398636936,0.53914219,1039.6,1038.8,1.16127984]
[1759398637234,0.53914219,1039.5,1038.8,1.16127984]
[1759398637438,0.53914219,1039.4,1038.8,1.16127984]
[1759398637637,0.53914219,1039.3,1038.8,1.16127984]
[1759398637941,0.53914219,1039.2,1038.8,1.16127984]
[1759398638141,0.86197612,1039.8,1038.8,1.16127984]
[1759398638440,0.53901989,1039.7,1038.8,1.16127984]
[1759398638640,0.53901989,1039.6,1038.8,1.16127984]
[1759398638941,0.53901989,1039.5,1038.8,1.16127984]
[1759398639144,0.53901989,1039.4,1038.8,1.16127984]
[1759398639437,0.53901989,1039.3,1038.8,1.16127984]
[1759398639736,0.86197612,1039.7,1038.8,1.16127984]
[1759398639942,0.53890258,1039.6,1038.8,1.16127984]
[1759398640138,0.53890258,1039.5,1038.8,1.16127984]
[1759398640337,0.53890258,1039.4,1038.8,1.16127984]
[1759398640540,0.53890258,1039.3,1038.8,1.16127984]
[1759398640741,0.86197612,1039.7,1038.8,1.16127984]
[1759398640942,0.53887215,1039.6,1038.8,1.16127984]
[1759398641138,0.53887215,1039.5,1038.8,1.16127984]
[1759398641341,0.53887215,1039.4,1038.8,1.16127984]
[1759398641641,0.53887215,1039.3,1038.8,1.16127984]
[1759398641842,0.86197612,1039.8,1038.8,1.16127984]
[1759398642039,0.53882706,1039.7,1038.8,1.16127984]
[1759398642341,0.53882706,1039.6,1038.8,1.16127984]
[1759398642540,0.53882706,1039.5,1038.8,1.16127984]
[1759398642738,0.53882706,1039.4,1038.8,1.16127984]
[1759398642937,0.53882706,1039.3,1038.8,1.16127984]
[1759398643241,0.86197612,1040.0,1038.8,1.16127984]
[1759398643440,0.53916381,1039.9,1038.8,1.16127984]
[1759398643639,0.53916381,1039.8,1038.8,1.16127984]
[1759398643837,0.53916381,1039.7,1038.8,1.16127984]
[1759398644036,0.53916381,1039.6,1038.8,1.16127984]
[1759398644245,0.53916381,1039.5,1038.8,1.16127984]
[1759398644441,0.53916381,1039.4,1038.8,1.16127984]
[1759398644741,0.53916381,1039.3,1038.8,1.16127984]
[1759398644943,0.86197612,1040.0,1038.8,1.16127984]
[1759398645137,0.53917689,1039.9,1038.8,1.16127984]
[1759398645438,0.53917689,1039.8,1038.8,1.16127984]
[1759398645638,0.86197612,1040.0,1038.8,1.16127984]
[1759398645639,0.53917689,1039.7,1038.8,1.16127984]
[1759398645838,0.53917689,1039.6,1038.8,1.16127984]
[1759398646041,0.53917689,1039.5,1038.8,1.16127984]
[1759398646239,0.53917689,1039.4,1038.8,1.16127984]
[1759398646540,0.53917689,1039.3,1038.8,1.16127984]
[1759398646739,0.86197612,1039.9,1038.8,1.16127984]
[1759398646942,0.53918504,1039.8,1038.8,1.16127984]
[1759398647144,0.53918504,1039.7,1038.8,1.16127984]
[1759398647444,0.53918504,1039.6,1038.8,1.16127984]
[1759398647644,0.53918504,1039.5,1038.8,1.16127984]
[1759398647842,0.53918504,1039.4,1038.8,1.16127984]
[1759398648043,0.86197612,1039.8,1038.8,1.16127984]
[1759398648241,0.53915101,1039.7,1038.8,1.16127984]
[1759398648440,0.53915101,1039.6,1038.8,1.16127984]
[1759398648645,0.53915101,1039.5,1038.8,1.16127984]
[1759398648842,0.86197612,1040.1,1038.8,1.16127984]
[1759398649147,0.53904587,1040.0,1038.8,1.16127984]
[1759398649442,0.53904587,1039.9,1038.8,1.16127984]
[1759398649640,0.53904587,1039.8,1038.8,1.16127984]
[1759398649841,0.53904587,1039.7,1038.8,1.16127984]
[1759398650049,0.86197612,1040.2,1038.8,1.16127984]
[1759398650244,0.53904509,1040.1,1038.8,1.16127984]
[1759398650546,0.53904509,1040.0,1038.8,1.16127984]
[1759398650745,0.53904509,1039.9,1038.8,1.16127984]
[1759398650942,0.53904509,1039.8,1038.8,1.16127984]
[1759398651144,0.53904509,1039.7,1038.8,1.16127984]
[1759398651342,0.53904509,1039.6,1038.8,1.16127984]
[1759398651547,0.86197612,1040.2,1038.8,1.16127984]
[1759398651744,0.53905852,1040.1,1038.8,1.16127984]
[1759398652044,0.53905852,1040.0,1038.8,1.16127984]
[1759398652247,0.53905852,1039.9,1038.8,1.16127984]
[1759398652446,0.53905852,1039.8,1038.8,1.16127984]
[1759398652645,0.53905852,1039.7,1038.8,1.16127984]
[1759398652845,0.53905852,1039.6,1038.8,1.16127984]
[1759398653046,0.86197612,1040.2,1038.8,1.16127984]
[1759398653244,0.5390654,1040.1,1038.8,1.16127984]
[1759398653448,0.5390654,1040.0,1038.8,1.16127984]
[1759398653649,0.5390654,1039.9,1038.8,1.16127984]
[1759398653848,0.5390654,1039.8,1038.8,1.16127984]
[1759398654143,0.5390654,1039.7,1038.8,1.16127984]
[1759398654343,0.5390654,1039.6,1038.8,1.16127984]
[1759398654549,0.86197612,1040.2,1038.8,1.16127984]
[1759398654741,0.53911493,1040.1,1038.8,1.16127984]
[1759398654945,0.53911493,1040.0,1038.8,1.16127984]
[1759398655149,0.53911493,1039.9,1038.8,1.16127984]
[1759398655346,0.53911493,1039.8,1038.8,1.16127984]
[1759398655645,0.53911493,1039.7,1038.8,1.16127984]
[1759398655948,0.53911493,1039.6,1038.8,1.16127984]
[1759398656149,0.86197612,1040.2,1038.8,1.16127984]
[1759398656346,0.53913942,1040.1,1038.8,1.16127984]
[1759398656652,0.53913942,1040.0,1038.8,1.16127984]
[1759398656946,0.53913942,1039.9,1038.8,1.16127984]
[1759398657150,0.53913942,1039.8,1038.8,1.16127984]
[1759398657349,0.53913942,1039.7,1038.8,1.16127984]
[1759398657646,0.53913942,1039.6,1038.8,1.16127984]
[1759398657849,0.86197612,1040.2,1038.8,1.16127984]
[1759398658049,0.53917737,1040.1,1038.8,1.16127984]
[1759398658249,0.53917737,1040.0,1038.8,1.16127984]
[1759398658445,0.53917737,1039.9,1038.8,1.16127984]
[1759398658645,0.53917737,1039.8,1038.8,1.16127984]
[1759398658848,0.53917737,1039.7,1038.8,1.16127984]
[1759398659046,0.53917737,1039.6,1038.8,1.16127984]
[1759398659254,0.86197612,1040.2,1038.8,1.16127984]
[1759398659449,0.53922051,1040.1,1038.8,1.16127984]
[1759398659749,0.53922051,1040.0,1038.8,1.16127984]
[1759398659950,0.53922051,1039.9,1038.8,1.16127984]
[1759398660149,0.53922051,1039.8,1038.8,1.16127984]
[1759398660449,0.53922051,1039.7,1038.8,1.16127984]
[1759398660650,0.53922051,1039.6,1038.8,1.16127984]